lending/lending_fUSD_20250425
["ID","MTS","AMOUNT","RATE_DAILY","PERIOD"]
[358914196,1745545011089,-500.0,0.00049589,30]
[358914197,1745545011118,-500.24,0.00049589,30]
[358914198,1745545011146,-2240.86,0.00049589,30]
[358914199,1745545011187,-510.89,0.00049589,30]
[358914200,1745545011220,-500.0,0.00049589,30]
[358914201,1745545011251,-500.0,0.00049589,30]
[358914202,1745545011280,-500.0,0.00049589,30]
[358914203,1745545011308,-848.12,0.00049589,30]
[358914204,1745545011337,-513.14020609,0.00049589,30]
[358914205,1745545011368,-500.0,0.00049589,30]
[358914206,1745545011398,-692.83,0.00049589,30]
[358914207,1745545011428,-500.0,0.00049589,30]
[358914208,1745545011458,-500.0,0.00049589,30]
[358914209,1745545011487,-879.68,0.00049589,30]
[358914210,1745545011517,-487.19648009,0.00049589,30]
[358914211,1745545011547,-535.77895472,0.00049589,30]
[358914212,1745545011579,-534.13480931,0.00049589,30]
[358914213,1745545011610,-546.55456049,0.00049589,30]
[358914214,1745545011640,-500.0,0.00049589,30]
[358914215,1745545011670,-500.0,0.00049589,30]
[358914216,1745545011702,-720.67,0.00049589,30]
[358914217,1745545011735,-500.0,0.00049589,30]
[358914218,1745545011769,-500.0,0.00049589,30]
[358914219,1745545011801,-551.35170617,0.00049589,30]
[358914220,1745545011835,-582.42,0.00049589,30]
[358914221,1745545011866,-841.5,0.00049589,30]
[358914222,1745545011899,-581.75,0.00049589,30]
[358914223,1745545011929,-500.0,0.00049589,30]
[358914224,1745545011959,-1088.58,0.00049589,30]
[358914225,1745545011991,-500.0,0.00049589,30]
[358914226,1745545012022,-2165.36,0.00049589,30]
[358914227,1745545012050,-500.0,0.00049589,30]
[358914228,1745545012079,-500.0,0.00049589,30]
[358914229,1745545012108,-500.0,0.00049589,30]
[358914230,1745545012138,-500.0,0.00049589,30]
[358914231,1745545012169,-953.99,0.00049589,30]
[358914232,1745545012199,-890.55,0.00049589,30]
[358914233,1745545012228,-500.0,0.00049589,30]
[358914234,1745545012542,-1518.52,0.00049589,30]
[358914235,1745545012572,-500.0,0.00049589,30]
[358914236,1745545012600,-163.76811946,0.00049589,30]
[358914237,1745545012628,-671.62,0.00049589,30]
[358914238,1745545012656,-522.07,0.00049589,30]
[358914239,1745545012685,-500.0,0.00049589,30]
[358914240,1745545012713,-500.0,0.00049589,30]
[358914241,1745545012740,-517.76948291,0.00049589,30]
[358914242,1745545012769,-500.0,0.00049589,30]
[358914243,1745545012798,-500.0,0.00049589,30]
[358914244,1745545012827,-207.46376804,0.00049589,30]
[358914245,1745545012856,-523.01,0.00049589,30]
[358914246,1745545012885,-538.77,0.00049589,30]
[358914247,1745545012913,-500.0,0.00049589,30]
[358914248,1745545012941,-1137.11,0.00049589,30]
[358914249,1745545012970,-1025.92,0.00049589,30]
[358914250,1745545012997,-500.0,0.00049589,30]
[358914251,1745545013025,-530.96,0.00049589,30]
[358914252,1745545013052,-727.07,0.00049589,30]
[358914253,1745545013080,-500.0,0.00049589,30]
[358914254,1745545013108,-644.39,0.00049589,30]
[358914255,1745545013138,-666.56,0.00049589,30]
[358914256,1745545013166,-500.0,0.00049589,30]
[358914257,1745545013194,-500.0,0.00049589,30]
[358914258,1745545013222,-376.55536926,0.00049589,30]
[358914259,1745545013250,-500.0,0.00049589,30]
[358914260,1745545013278,-1696.5,0.00049589,30]
[358914261,1745545013307,-500.0,0.00049589,30]
[358914262,1745545013335,-543.02,0.00049589,30]
[358914263,1745545013363,-500.0,0.00049589,30]
[358914264,1745545013392,-500.0,0.00049589,30]
[358914265,1745545013420,-500.0,0.00049589,30]
[358914266,1745545013449,-558.19920307,0.00049589,30]
[358914267,1745545013479,-500.0,0.00049589,30]
[358914268,1745545013512,-504.91,0.00049589,30]
[358914269,1745545013544,-1420.61,0.00049589,30]
[358914270,1745545013576,-505.28124109,0.00049589,30]
[358914271,1745545013606,-1476.76,0.00049589,30]
[358914272,1745545013637,-514.11438872,0.00049589,30]
[358914273,1745545013667,-500.0,0.00049589,30]
[358914274,1745545013698,-500.0,0.00049589,30]
[358914275,1745545013730,-649.75,0.00049589,30]
[358914276,1745545013760,-500.0,0.00049589,30]
[358914277,1745545013790,-717.43,0.00049589,30]
[358914278,1745545013827,-500.0,0.00049589,30]
[358914279,1745545013858,-2109.27,0.00049589,30]
[358914280,1745545013888,-500.0,0.00049589,30]
[358914281,1745545013918,-634.13,0.00049589,30]
[358914282,1745545013947,-500.0,0.00049589,30]
[358914283,1745545013975,-917.14,0.00049589,30]
[358914284,1745545014003,-607.76125084,0.00049589,30]
[358914285,1745545014031,-500.0,0.00049589,30]
[358914286,1745545014058,-1147.28,0.00049589,30]
[358914287,1745545014089,-1981.94,0.00049589,30]
[358914288,1745545014118,-505.51,0.00049589,30]
[358914289,1745545014147,-606.78,0.00049589,30]
[358914290,1745545014179,-2036.61,0.00049589,30]
[358914291,1745545014208,-2000.0,0.00049589,30]
[358914292,1745545014236,-500.0,0.00049589,30]
[358914293,1745545014265,-505.1,0.00049589,30]
[358914294,1745545014294,-500.0,0.00049589,30]
[358914295,1745545014324,-500.0,0.00049589,30]
[358914296,1745545014353,-500.0,0.00049589,30]
[358914297,1745545014383,-2004.56,0.00049589,30]
[358914298,1745545014413,-500.0,0.00049589,30]
[358914299,1745545014441,-500.0,0.00049589,30]
[358914300,1745545014469,-500.0,0.00049589,30]
[358914301,1745545014497,-500.0,0.00049589,120]
[358914302,1745545014525,-595.29,0.00049589,30]
[358914303,1745545014553,-792.47,0.00049589,30]
[358914304,1745545014582,-1236.02,0.00049589,30]
[358914305,1745545014610,-500.0,0.00049589,30]
[358914306,1745545014637,-500.0,0.00049589,30]
[358914307,1745545014665,-500.0,0.00049589,30]
[358914308,1745545014692,-500.0,0.00049589,30]
[358914309,1745545014723,-500.0,0.00049589,30]
[358914310,1745545014751,-500.0,0.00049589,30]
[358914311,1745545014781,-567.95650543,0.00049589,30]
[358914312,1745545014811,-500.0,0.00049589,30]
[358914313,1745545014838,-500.0,0.00049589,30]
[358914314,1745545014866,-500.0,0.00049589,30]
[358914315,1745545014895,-500.0,0.00049589,30]
[358914316,1745545014923,-754.49,0.00049589,30]
[358914317,1745545014950,-543.78,0.00049589,30]
[358914318,1745545014978,-500.0,0.00049589,30]
[358914319,1745545015006,-1033.94,0.00049589,30]
[358914320,1745545015034,-619.56,0.00049589,30]
[358914321,1745545015061,-543.777685,0.00049589,30]
[358914322,1745545015090,-1673.76,0.00049589,30]
[358914323,1745545015118,-1548.26,0.00049589,30]
[358914324,1745545015146,-273.57808278,0.00049589,30]
[358914325,1745545015174,-500.0,0.00049589,30]
[358914326,1745545015202,-565.95,0.00049589,30]
[358914327,1745545015232,-540.28,0.00049589,30]
[358914328,1745545015262,-544.0,0.00049589,30]
[358914329,1745545015291,-1041.66,0.00049589,30]
[358914330,1745545015319,-1495.9,0.00049589,30]
[358914331,1745545015348,-500.0,0.00049589,30]
[358914332,1745545015377,-500.0,0.00049589,30]
[358914333,1745545015406,-500.0,0.00049589,30]
[358914334,1745545015434,-500.0,0.00049589,30]
[358914335,1745545015463,-500.0,0.00049589,30]
[358914336,1745545015492,-608.11,0.00049589,30]
[358914337,1745545015521,-500.0,0.00049589,30]
[358914338,1745545015757,-500.0,0.00049589,30]
[358914339,1745545015788,-500.0,0.00049589,30]
[358914340,1745545015821,-537.72,0.00049589,30]
[358914341,1745545015851,-1939.16,0.00049589,30]
[358914342,1745545015884,-500.0,0.00049589,30]
[358914343,1745545015915,-500.0,0.00049589,30]
[358914344,1745545015945,-500.0,0.00049589,30]
[358914345,1745545015976,-500.0,0.00049589,30]
[358914346,1745545016006,-500.0,0.00049589,30]
[358914347,1745545016036,-1362.69,0.00049589,30]
[358914348,1745545016065,-1710.55,0.00049589,30]
[358914349,1745545016096,-500.0,0.00049589,30]
[358914350,1745545016127,-686.33,0.00049589,30]
[358914351,1745545016159,-500.0,0.00049589,30]
[358914352,1745545016189,-500.0,0.00049589,30]
[358914353,1745545016219,-500.0,0.00049589,30]
[358914354,1745545016249,-1329.3,0.00049589,30]
[358914355,1745545016279,-500.0,0.00049589,30]
[358914356,1745545016309,-2072.41,0.00049589,30]
[358914357,1745545016338,-569.6,0.00049589,30]
[358914358,1745545016367,-500.0,0.00049589,30]
[358914359,1745545016395,-1556.23,0.00049589,30]
[358914360,1745545016424,-500.0,0.00049589,30]
[358914361,1745545016453,-500.0,0.00049589,30]
[358914362,1745545016484,-500.0,0.00049589,30]
[358914363,1745545016513,-500.0,0.00049589,30]
[358914364,1745545016541,-713.78,0.00049589,30]
[358914365,1745545016570,-583.47099509,0.00049589,30]
[358914366,1745545016599,-500.0,0.00049589,30]
[358914367,1745545016627,-1454.62,0.00049589,30]
[358914368,1745545016656,-500.0,0.00049589,30]
[358914369,1745545016684,-560.21,0.00049589,30]
[358914370,1745545016712,-500.0,0.00049589,30]
[358914371,1745545016740,-500.0,0.00049589,30]
[358914372,1745545016768,-500.0,0.00049589,30]
[358914373,1745545016796,-500.0,0.00049589,30]
[358914374,1745545016827,-500.0,0.00049589,30]
[358914375,1745545016854,-505.42523689,0.00049589,30]
[358914376,1745545016883,-500.0,0.00049589,30]
[358914377,1745545016913,-500.0,0.00049589,30]
[358914378,1745545016940,-632.80009203,0.00049589,30]
[358914379,1745545016969,-500.0,0.00049589,30]
[358914380,1745545016998,-500.0,0.00049589,30]
[358914381,1745545017028,-583.59869103,0.00049589,30]
[358914382,1745545017056,-2274.26,0.00049589,30]
[358914383,1745545017085,-500.0,0.00049589,30]
[358914384,1745545017113,-500.0,0.00049589,30]
[358914385,1745545017140,-1417.1,0.00049589,30]
[358914386,1745545017168,-500.0,0.00049589,30]
[358914387,1745545017194,-500.0,0.00049589,30]
[358914388,1745545017222,-500.0,0.00049589,30]
[358914389,1745545017250,-640.19,0.00049589,30]
[358914390,1745545017279,-1523.67,0.00049589,30]
[358914391,1745545017306,-500.0,0.00049589,30]
[358914392,1745545017334,-500.0,0.00049589,30]
[358914393,1745545017362,-500.0,0.00049589,30]
[358914394,1745545017391,-624.31,0.00049589,30]
[358914395,1745545017420,-500.0,0.00049589,30]
[358914396,1745545017448,-1349.12,0.00049589,30]
[358914397,1745545017477,-1073.85,0.00049589,30]
[358914398,1745545017507,-235.74284125,0.00049589,30]
[358914399,1745545017534,-500.0,0.00049589,30]
[358914400,1745545017561,-300.0,0.00049589,30]
[358914401,1745545017589,-503.64333002,0.00049589,30]
[358914402,1745545017617,-500.0,0.00049589,30]
[358914403,1745545017645,-500.0,0.00049589,30]
[358914404,1745545017673,-766.4,0.00049589,30]
[358914405,1745545017701,-500.0,0.00049589,30]
[358914406,1745545017730,-500.0,0.00049589,30]
[358914407,1745545017758,-500.0,0.00049589,30]
[358914408,1745545017786,-500.0,0.00049589,30]
[358914409,1745545017813,-500.0,0.00049589,30]
[358914410,1745545017840,-542.53,0.00049589,30]
[358914411,1745545017867,-657.49,0.00049589,30]
[358914412,1745545017898,-1692.22,0.00049589,30]
[358914413,1745545017925,-590.87207911,0.00049589,30]
[358914414,1745545017952,-500.0,0.00049589,30]
[358914415,1745545017979,-500.0,0.00049589,30]
[358914416,1745545018006,-518.65802727,0.00049589,30]
[358914417,1745545018033,-1140.56,0.00049589,30]
[358914418,1745545018061,-500.0,0.00049589,30]
[358914419,1745545018088,-644.02,0.00049589,30]
[358914420,1745545018116,-896.35,0.00049589,30]
[358914421,1745545018143,-500.0,0.00049589,30]
[358914422,1745545018171,-500.0,0.00049589,30]
[358914423,1745545018198,-500.0,0.00049589,30]
[358914424,1745545018225,-500.0,0.00049589,30]
[358914425,1745545018252,-500.0,0.00049589,30]
[358914426,1745545018279,-500.0,0.00049589,30]
[358914427,1745545018306,-500.0,0.00049589,30]
[358914428,1745545018333,-1611.96,0.00049589,30]
[358914429,1745545018360,-500.0,0.00049589,30]
[358914430,1745545018387,-500.0,0.00049589,30]
[358914431,1745545018414,-572.38732694,0.00049589,30]
[358914432,1745545018441,-500.0,0.00049589,30]
[358914433,1745545018469,-500.0,0.00049589,30]
[358914434,1745545018498,-500.0,0.00049589,30]
[358914435,1745545018526,-500.0,0.00049589,30]
[358914436,1745545018554,-994.55,0.00049589,30]
[358914437,1745545018582,-500.0,0.00049589,30]
[358914438,1745545018611,-500.0,0.00049589,30]
[358914439,1745545018641,-500.0,0.00049589,30]
[358914440,1745545018669,-2099.49,0.00049589,30]
[358914441,1745545018698,-500.0,0.00049589,30]
[358914442,1745545018939,-500.0,0.00049589,30]
[358914443,1745545019008,-500.0,0.00049589,30]
[358914444,1745545019039,-542.37,0.00049589,30]
[358914445,1745545019071,-500.0,0.00049589,30]
[358914446,1745545019101,-189.12709591,0.00049589,30]
[358914447,1745545019131,-500.0,0.00049589,30]
[358914448,1745545019160,-500.0,0.00049589,30]
[358914449,1745545019190,-1610.96,0.00049589,30]
[358914450,1745545019218,-500.0,0.00049589,30]
[358914451,1745545019248,-2291.4,0.00049589,30]
[358914452,1745545019276,-546.08,0.00049589,30]
[358914453,1745545019309,-500.0,0.00049589,30]
[358914454,1745545019338,-583.12211743,0.00049589,30]
[358914455,1745545019368,-500.0,0.00049589,30]
[358914456,1745545019397,-2439.89,0.00049589,30]
[358914457,1745545019426,-500.0,0.00049589,30]
[358914458,1745545019455,-500.0,0.00049589,30]
[358914459,1745545019485,-500.0,0.00049589,30]
[358914460,1745545019514,-500.0,0.00049589,30]
[358914461,1745545019543,-531.01875514,0.00049589,30]
[358914462,1745545019574,-500.0,0.00049589,30]
[358914463,1745545019605,-500.0,0.00049589,30]
[358914464,1745545019635,-584.43,0.00049589,30]
[358914465,1745545019665,-500.0,0.00049589,30]
[358914466,1745545019695,-500.0,0.00049589,30]
[358914467,1745545019727,-939.8,0.00049589,30]
[358914468,1745545019757,-2036.8,0.00049589,30]
[358914469,1745545019786,-500.0,0.00049589,30]
[358914470,1745545019817,-500.0,0.00049589,30]
[358914471,1745545019847,-517.24,0.00049589,30]
[358914472,1745545019878,-500.0,0.00049589,30]
[358914473,1745545019907,-1789.85,0.00049589,30]
[358914474,1745545019935,-1482.56,0.00049589,30]
[358914475,1745545019965,-500.0,0.00049589,30]
[358914476,1745545019994,-500.0,0.00049589,30]
[358914477,1745545020022,-566.72,0.00049589,30]
[358914478,1745545020051,-629.88219425,0.00049589,30]
[358914479,1745545020082,-500.0,0.00049589,30]
[358914480,1745545020111,-500.0,0.00049589,30]
[358914481,1745545020139,-500.0,0.00049589,30]
[358914482,1745545020168,-500.0,0.00049589,30]
[358914483,1745545020199,-500.0,0.00049589,30]
[358914484,1745545020231,-1510.65,0.00049589,30]
[358914485,1745545020262,-500.0,0.00049589,30]
[358914486,1745545020293,-7820.72,0.00049589,30]
[358914487,1745545020321,-1008.08,0.00049589,30]
[358914488,1745545020350,-2109.99,0.00049589,30]
[358914489,1745545020378,-500.0,0.00049589,30]
[358914490,1745545020406,-373.99875856,0.00049589,30]
[358914491,1745545020434,-1011.43,0.00049589,30]
[358914492,1745545020462,-500.0,0.00049589,30]
[358914493,1745545020490,-730.49,0.00049589,30]
[358914494,1745545020518,-552.09718626,0.00049589,30]
[358914495,1745545020547,-1151.98,0.00049589,30]
[358914496,1745545020578,-500.0,0.00049589,30]
[358914497,1745545020608,-860.98,0.00049589,30]
[358914498,1745545020638,-500.0,0.00049589,30]
[358914499,1745545020667,-500.0,0.00049589,30]
[358914500,1745545020697,-528.27,0.00049589,30]
[358914501,1745545020726,-632.43884672,0.00049589,30]
[358914502,1745545020755,-500.0,0.00049589,30]
[358914503,1745545020784,-500.0,0.00049589,30]
[358914504,1745545020814,-4932.73,0.00049589,30]
[358914505,1745545020842,-500.0,0.00049589,30]
[358914506,1745545020872,-500.0,0.00049589,30]
[358914507,1745545020903,-769.43,0.00049589,30]
[358914508,1745545020932,-500.0,0.00049589,30]
[358914509,1745545020960,-500.0,0.00049589,30]
[358914510,1745545020989,-694.5,0.00049589,30]
[358914511,1745545021019,-500.0,0.00049589,30]
[358914512,1745545021047,-500.0,0.00049589,30]
[358914513,1745545021075,-500.0,0.00049589,30]
[358914514,1745545021103,-500.0,0.00049589,30]
[358914515,1745545021132,-858.57,0.00049589,30]
[358914516,1745545021162,-500.0,0.00049589,30]
[358914517,1745545021193,-372.74929634,0.00049589,30]
[358914518,1745545021222,-500.0,0.00049589,30]
[358914519,1745545021252,-735.15,0.00049589,30]
[358914520,1745545021283,-916.62,0.00049589,30]
[358914521,1745545021313,-544.75486638,0.00049589,30]
[358914522,1745545021345,-763.88,0.00049589,30]
[358914523,1745545021375,-501.66,0.00049589,30]
[358914524,1745545021406,-727.33,0.00049589,30]
[358914525,1745545021438,-3396.35,0.00049589,30]
[358914526,1745545021469,-875.49,0.00049589,120]
[358914527,1745545021500,-500.0,0.00049589,30]
[358914528,1745545021530,-500.0,0.00049589,30]
[358914529,1745545021559,-500.0,0.00049589,30]
[358914530,1745545021590,-500.0,0.00049589,30]
[358914531,1745545021618,-1575.26,0.00049589,30]
[358914532,1745545021646,-3022.03,0.00049589,30]
[358914533,1745545021674,-500.0,0.00049589,30]
[358914534,1745545021701,-500.0,0.00049589,30]
[358914535,1745545021728,-500.0,0.00049589,30]
[358914536,1745545021757,-500.0,0.00049589,30]
[358914537,1745545021783,-500.0,0.00049589,30]
[358914538,1745545021812,-500.0,0.00049589,30]
[358914539,1745545021839,-719.69,0.00049589,30]
[358914540,1745545021869,-1502.96,0.00049589,30]
[358914541,1745545021897,-742.58,0.00049589,30]
[358914542,1745545021923,-500.0,0.00049589,30]
[358914543,1745545021949,-500.0,0.00049589,30]
[358914544,1745545021978,-695.81,0.00049589,30]
[358914545,1745545022004,-500.0,0.00049589,30]
[358914546,1745545022032,-616.99997512,0.00049589,30]
[358914547,1745545022306,-500.0,0.00049589,30]
[358914548,1745545022337,-500.0,0.00049589,30]
[358914549,1745545022370,-500.0,0.00049589,30]
[358914550,1745545022401,-260.01884086,0.00049589,30]
[358914551,1745545022431,-663.3,0.00049589,30]
[358914552,1745545022460,-500.0,0.00049589,30]
[358914553,1745545022491,-678.67,0.00049589,30]
[358914554,1745545022522,-618.78,0.00049589,30]
[358914555,1745545022552,-764.82,0.00049589,30]
[358914556,1745545022581,-500.0,0.00049589,30]
[358914557,1745545022612,-500.0,0.00049589,30]
[358914558,1745545022642,-1442.41,0.00049589,30]
[358914559,1745545022671,-2108.6,0.00049589,30]
[358914560,1745545022700,-500.0,0.00049589,30]
[358914561,1745545022728,-543.59305698,0.00049589,30]
[358914562,1745545022756,-550.18807569,0.00049589,30]
[358914563,1745545022784,-500.0,0.00049589,30]
[358914564,1745545022815,-873.69,0.00049589,30]
[358914565,1745545022844,-599.18,0.00049589,30]
[358914566,1745545022874,-3086.13,0.00049589,30]
[358914567,1745545022908,-500.0,0.00049589,30]
[358914568,1745545022937,-1593.79,0.00049589,30]
[358914569,1745545022967,-2263.32,0.00049589,30]
[358914570,1745545022996,-500.0,0.00049589,30]
[358914571,1745545023026,-2700.89,0.00049589,30]
[358914572,1745545023055,-500.0,0.00049589,30]
[358914573,1745545023085,-500.0,0.00049589,30]
[358914574,1745545023116,-795.15,0.00049589,30]
[358914575,1745545023146,-500.0,0.00049589,30]
[358914576,1745545023175,-522.13,0.00049589,30]
[358914577,1745545023206,-500.0,0.00049589,30]
[358914578,1745545023237,-500.0,0.00049589,30]
[358914579,1745545023270,-1414.77,0.00049589,30]
[358914580,1745545023303,-500.0,0.00049589,30]
[358914581,1745545023336,-1268.35,0.00049589,30]
[358914582,1745545023375,-1107.8,0.00049589,30]
[358914583,1745545023406,-500.0,0.00049589,30]
[358914584,1745545023436,-2000.0,0.00049589,120]
[358914585,1745545023468,-500.0,0.00049589,30]
[358914586,1745545023501,-879.02,0.00049589,30]
[358914587,1745545023533,-818.01,0.00049589,30]
[358914588,1745545023565,-567.35063336,0.00049589,30]
[358914589,1745545023598,-1065.05,0.00049589,30]
[358914590,1745545023631,-1598.1,0.00049589,30]
[358914591,1745545023663,-1000.0,0.00049589,30]
[358914592,1745545023695,-4254.61,0.00049589,30]
[358914593,1745545023727,-500.0,0.00049589,30]
[358914594,1745545023757,-500.0,0.00049589,30]
[358914595,1745545023790,-500.0,0.00049589,30]
[358914596,1745545023825,-500.0,0.00049589,30]
[358914597,1745545023857,-500.0,0.00049589,30]
[358914598,1745545023890,-2090.38,0.00049589,30]
[358914599,1745545023920,-858.84,0.00049589,30]
[358914600,1745545023951,-752.9,0.00049589,30]
[358914601,1745545023983,-765.14,0.00049589,30]
[358914602,1745545024013,-500.0,0.00049589,30]
[358914603,1745545024043,-500.0,0.00049589,30]
[358914604,1745545024073,-1773.32,0.00049589,30]
[358914605,1745545024103,-500.0,0.00049589,30]
[358914606,1745545024134,-1111.7,0.00049589,30]
[358914607,1745545024164,-1976.47,0.00049589,30]
[358914608,1745545024190,-500.0,0.00049589,30]
[358914609,1745545024215,-500.0,0.00049589,30]
[358914610,1745545024241,-2108.59,0.00049589,30]
[358914611,1745545024267,-1416.48,0.00049589,30]
[358914612,1745545024293,-500.0,0.00049589,30]
[358914613,1745545024318,-509.56,0.00049589,30]
[358914614,1745545024345,-598.47599956,0.00049589,30]
[358914615,1745545024370,-700.32,0.00049589,30]
[358914616,1745545024396,-924.91,0.00049589,30]
[358914617,1745545024423,-690.7,0.00049589,30]
[358914618,1745545024451,-500.0,0.00049589,30]
[358914619,1745545024478,-500.0,0.00049589,30]
[358914620,1745545024505,-1140.87,0.00049589,30]
[358914621,1745545024534,-500.0,0.00049589,30]
[358914622,1745545024561,-500.0,0.00049589,30]
[358914623,1745545024591,-7822.1,0.00049589,30]
[358914624,1745545024619,-500.0,0.00049589,30]
[358914626,1745545024646,-657.75,0.00049589,30]
[358914627,1745545024673,-871.81,0.00049589,30]
[358914629,1745545024700,-500.0,0.00049589,30]
[358914631,1745545024727,-555.88705197,0.00049589,30]
[358914632,1745545024754,-1613.27,0.00049589,30]
[358914633,1745545024780,-500.0,0.00049589,30]
[358914634,1745545024809,-415.51,0.00049589,30]
[358914635,1745545024838,-500.0,0.00049589,30]
[358914636,1745545024866,-8595.77,0.00049589,30]
[358914637,1745545024894,-500.0,0.00049589,30]
[358914638,1745545024920,-806.86,0.00049589,30]
[358914639,1745545024947,-828.35,0.00049589,30]
[358914640,1745545024974,-500.0,0.00049589,30]
[358914641,1745545025001,-500.0,0.00049589,30]
[358914642,1745545025028,-1103.09,0.00049589,30]
[358914643,1745545025054,-942.33,0.00049589,30]
[358914644,1745545025081,-500.0,0.00049589,30]
[358914645,1745545025108,-500.0,0.00049589,30]
[358914646,1745545025134,-1310.31,0.00049589,30]
[358914647,1745545025161,-1476.33,0.00049589,30]
[358914648,1745545025187,-1855.1,0.00049589,30]
[358914649,1745545025213,-500.0,0.00049589,30]
[358914650,1745545025240,-524.27557523,0.00049589,30]
[358914651,1745545025267,-2687.81,0.00049589,30]
[358914652,1745545025293,-500.0,0.00049589,30]
[358914653,1745545025320,-500.0,0.00049589,30]
[358914654,1745545025561,-1456.2,0.00049589,30]
[358914655,1745545025591,-1289.56,0.00049589,30]
[358914656,1745545025618,-500.0,0.00049589,30]
[358914657,1745545025644,-500.0,0.00049589,30]
[358914658,1745545025672,-1901.29,0.00049589,30]
[358914659,1745545025697,-513.48059467,0.00049589,30]
[358914660,1745545025724,-534.46515515,0.00049589,30]
[358914661,1745545025754,-500.0,0.00049589,30]
[358914662,1745545025782,-827.14,0.00049589,30]
[358914663,1745545025810,-500.0,0.00049589,30]
[358914664,1745545025837,-500.0,0.00049589,30]
[358914665,1745545025865,-500.0,0.00049589,30]
[358914666,1745545025896,-792.6,0.00049589,30]
[358914667,1745545025923,-500.0,0.00049589,30]
[358914668,1745545025951,-1103.01,0.00049589,30]
[358914669,1745545025978,-546.36,0.00049589,30]
[358914670,1745545026004,-1780.52,0.00049589,30]
[358914671,1745545026032,-500.0,0.00049589,30]
[358914672,1745545026059,-500.0,0.00049589,30]
[358914673,1745545026085,-500.0,0.00049589,30]
[358914674,1745545026111,-1012.63,0.00049589,30]
[358914675,1745545026138,-2937.58,0.00049589,30]
[358914676,1745545026165,-500.0,0.00049589,30]
[358914677,1745545026191,-500.0,0.00049589,30]
[358914678,1745545026218,-541.09,0.00049589,30]
[358914679,1745545026245,-1812.49,0.00049589,30]
[358914680,1745545026272,-500.0,0.00049589,30]
[358914681,1745545026298,-500.0,0.00049589,30]
[358914682,1745545026326,-2325.32,0.00049589,30]
[358914683,1745545026353,-500.0,0.00049589,30]
[358914684,1745545026381,-2645.58,0.00049589,30]
[358914685,1745545026408,-500.0,0.00049589,30]
[358914686,1745545026434,-500.0,0.00049589,30]
[358914687,1745545026461,-500.0,0.00049589,30]
[358914688,1745545026487,-2124.79,0.00049589,30]
[358914689,1745545026512,-500.0,0.00049589,30]
[358914690,1745545026538,-500.0,0.00049589,30]
[358914691,1745545026563,-1616.8,0.00049589,30]
[358914692,1745545026590,-1776.77,0.00049589,30]
[358914693,1745545026617,-500.0,0.00049589,30]
[358914694,1745545026644,-661.52,0.00049589,30]
[358914695,1745545026669,-500.0,0.00049589,30]
[358914696,1745545026697,-620.23,0.00049589,30]
[358914697,1745545026722,-500.0,0.00049589,30]
[358914698,1745545026748,-1156.82,0.00049589,30]